{"text_format":"1","workbook":"xlsx","n_sheets":1,"sheets":["Бюджет жоспарлаушы"],"not_rendered":{"charts":1,"images":0,"macros":0,"external_links":0,"defined_names":2,"comments":0,"pivot_tables":0},"unopened":[],"bounds":{"document_bytes":16777216,"sheet_cells":100000,"rows_first":2000,"rows_last":500,"rows_between":2000,"halvings":0,"cell_chars":16384,"cell_head_chars":4096},"cells_cut":0,"cells_raw":0,"read":"whole","date_system":"1900"}

{"sheet":"Бюджет жоспарлаушы","index":0,"n_rows":136,"n_cols":7,"rows_kept":136,"cut":false,"hidden":false,"merged":[[15,1,15,5],[22,1,22,5],[47,2,47,5],[136,2,136,5],[90,2,90,5],[100,2,100,5],[109,2,109,5],[116,2,116,5],[123,2,123,5],[129,2,129,5],[80,2,80,5],[36,2,36,5],[54,2,54,5],[60,2,60,5],[72,2,72,5]]}
[null,null,null,null,null,null," "]
[null,null,null,null,null,null," "]
[]
[]
[]
[null,null,null,null,null,null," "]
[]
[]
[null,null,null,null,null,null," "]
[]
[]
[null,"  ","Қолма-қол ақша қозғалысы","Жоспарланған","Базалық актив","Айырмашылық"]
[null,null,"Жалпы кіріс",{"$f":"SUM(кіріс[Жоспарланған])","v":5600},{"$f":"SUM(кіріс[Базалық актив])","v":4700},{"$f":"SUM(кіріс[Айырмашылық])","v":-900}]
[null,null,"Жалпы шығын",{"$f":"totalExpenseProjected","v":1195},{"$f":"totalExpenseActual","v":736},{"$f":"CashFlow[[#This Row],[Жоспарланған]]-CashFlow[[#This Row],[Базалық актив]]","v":459}]
[null,null,"Жалпы қолма-қол ақша қозғалысы",{"$f":"D13-D14","v":4405},{"$f":"E13-E14","v":3964},{"$f":"CashFlow[[#This Row],[Базалық актив]]-CashFlow[[#This Row],[Жоспарланған]]","v":-441}]
[]
[null," ","Айлық кіріс","Жоспарланған","Базалық актив","Айырмашылық"]
[null,null,"1-кіріс",4000,3000,{"$f":"кіріс[[#This Row],[Базалық актив]]-кіріс[[#This Row],[Жоспарланған]]","v":-1000}]
[null,null,"2-кіріс",1300,1400,{"$f":"кіріс[[#This Row],[Базалық актив]]-кіріс[[#This Row],[Жоспарланған]]","v":100}]
[null,null,"Қосымша кіріс",300,300,{"$f":"кіріс[[#This Row],[Базалық актив]]-кіріс[[#This Row],[Жоспарланған]]","v":0}]
[null,null,"Басқа",null,null,{"$f":"кіріс[[#This Row],[Базалық актив]]-кіріс[[#This Row],[Жоспарланған]]","v":0}]
[null,"Қорытынды","ЖАЛПЫ КІРІС",{"$f":"SUBTOTAL(109,кіріс[Жоспарланған])","v":5600},{"$f":"SUBTOTAL(109,кіріс[Базалық актив])","v":4700},{"$f":"SUBTOTAL(109,кіріс[Айырмашылық])","v":-900}]
[]
[null,null,"Үйге жұмсалатын шығындар","Жоспарланған","Базалық актив","Айырмашылық"]
[null,null,"Ипотека немесе жалдау шығыны",1000,500,{"$f":"Баспана[[#This Row],[Жоспарланған]]-Баспана[[#This Row],[Базалық актив]]","v":500}]
[null,null,"Екінші ипотека немесе жалдау шығыны",0,0,{"$f":"Баспана[[#This Row],[Жоспарланған]]-Баспана[[#This Row],[Базалық актив]]","v":0}]
[null,null,"Телефон",54,100,{"$f":"Баспана[[#This Row],[Жоспарланған]]-Баспана[[#This Row],[Базалық актив]]","v":-46}]
[null,null,"Жарық",44,56,{"$f":"Баспана[[#This Row],[Жоспарланған]]-Баспана[[#This Row],[Базалық актив]]","v":-12}]
[null,null,"Газ",22,28,{"$f":"Баспана[[#This Row],[Жоспарланған]]-Баспана[[#This Row],[Базалық актив]]","v":-6}]
[null,null,"Су мен канализация",8,8,{"$f":"Баспана[[#This Row],[Жоспарланған]]-Баспана[[#This Row],[Базалық актив]]","v":0}]
[null,null,"Кабелді телеарна",34,34,{"$f":"Баспана[[#This Row],[Жоспарланған]]-Баспана[[#This Row],[Базалық актив]]","v":0}]
[null,null,"Қоқысты шығару",10,10,{"$f":"Баспана[[#This Row],[Жоспарланған]]-Баспана[[#This Row],[Базалық актив]]","v":0}]
[null,null,"Күтім көрсету немесе жөндеу",23,0,{"$f":"Баспана[[#This Row],[Жоспарланған]]-Баспана[[#This Row],[Базалық актив]]","v":23}]
[null,null,"Керек-жарақтар",0,0,{"$f":"Баспана[[#This Row],[Жоспарланған]]-Баспана[[#This Row],[Базалық актив]]","v":0}]
[null,null,"Басқа",0,0,{"$f":"Баспана[[#This Row],[Жоспарланған]]-Баспана[[#This Row],[Базалық актив]]","v":0}]
[null,null,"Қорытынды",{"$f":"SUBTOTAL(109,Баспана[Жоспарланған])","v":1195},{"$f":"SUBTOTAL(109,Баспана[Базалық актив])","v":736},{"$f":"SUBTOTAL(109,Баспана[Айырмашылық])","v":459}]
[]
[null,null,"Тасымалдау","Жоспарланған","Базалық актив","Айырмашылық"]
[null,null,"1-ші көлік ақысы",null,null,{"$f":"Тасымалдау[[#This Row],[Жоспарланған]]-Тасымалдау[[#This Row],[Базалық актив]]","v":0}]
[null,null,"2-ші көлік ақысы",null,null,{"$f":"Тасымалдау[[#This Row],[Жоспарланған]]-Тасымалдау[[#This Row],[Базалық актив]]","v":0}]
[null,null,"Автобус/такси жол жүру құны",null,null,{"$f":"Тасымалдау[[#This Row],[Жоспарланған]]-Тасымалдау[[#This Row],[Базалық актив]]","v":0}]
[null,null,"Сақтандыру",null,null,{"$f":"Тасымалдау[[#This Row],[Жоспарланған]]-Тасымалдау[[#This Row],[Базалық актив]]","v":0}]
[null,null,"Лицензиялау",null,null,{"$f":"Тасымалдау[[#This Row],[Жоспарланған]]-Тасымалдау[[#This Row],[Базалық актив]]","v":0}]
[null,null,"Жағармай",null,null,{"$f":"Тасымалдау[[#This Row],[Жоспарланған]]-Тасымалдау[[#This Row],[Базалық актив]]","v":0}]
[null,null,"Күтім көрсету",null,null,{"$f":"Тасымалдау[[#This Row],[Жоспарланған]]-Тасымалдау[[#This Row],[Базалық актив]]","v":0}]
[null,null,"Басқа",null,null,{"$f":"Тасымалдау[[#This Row],[Жоспарланған]]-Тасымалдау[[#This Row],[Базалық актив]]","v":0}]
[null,null,"Қорытынды",{"$f":"SUBTOTAL(109,Тасымалдау[Жоспарланған])","v":0},{"$f":"SUBTOTAL(109,Тасымалдау[Базалық актив])","v":0},{"$f":"SUBTOTAL(109,Тасымалдау[Айырмашылық])","v":0}]
[]
[null,null,"Сақтандыру","Жоспарланған","Базалық актив","Айырмашылық"]
[null,null,"Үй",null,null,{"$f":"Сақтандыру[[#This Row],[Жоспарланған]]-Сақтандыру[[#This Row],[Базалық актив]]","v":0}]
[null,null,"Денсаулық",null,null,{"$f":"Сақтандыру[[#This Row],[Жоспарланған]]-Сақтандыру[[#This Row],[Базалық актив]]","v":0}]
[null,null,"Өмір",null,null,{"$f":"Сақтандыру[[#This Row],[Жоспарланған]]-Сақтандыру[[#This Row],[Базалық актив]]","v":0}]
[null,null,"Басқа",null,null,{"$f":"Сақтандыру[[#This Row],[Жоспарланған]]-Сақтандыру[[#This Row],[Базалық актив]]","v":0}]
[null,null,"Қорытынды",{"$f":"SUBTOTAL(109,Сақтандыру[Жоспарланған])","v":0},{"$f":"SUBTOTAL(109,Сақтандыру[Базалық актив])","v":0},{"$f":"SUBTOTAL(109,Сақтандыру[Айырмашылық])","v":0}]
[]
[null,null,"Тамақ","Жоспарланған","Базалық актив","Айырмашылық"]
[null,null,"Азық-түлік",null,null,{"$f":"Тамақ[[#This Row],[Жоспарланған]]-Тамақ[[#This Row],[Базалық актив]]","v":0}]
[null,null,"Сырттан тамақтану",null,null,{"$f":"Тамақ[[#This Row],[Жоспарланған]]-Тамақ[[#This Row],[Базалық актив]]","v":0}]
[null,null,"Басқа",null,null,{"$f":"Тамақ[[#This Row],[Жоспарланған]]-Тамақ[[#This Row],[Базалық актив]]","v":0}]
[null,null,"Қорытынды",{"$f":"SUBTOTAL(109,Тамақ[Жоспарланған])","v":0},{"$f":"SUBTOTAL(109,Тамақ[Базалық актив])","v":0},{"$f":"SUBTOTAL(109,Тамақ[Айырмашылық])","v":0}]
[]
[null,null,"Балалар","Жоспарланған","Базалық актив","Айырмашылық"]
[null,null,"Медициналық тексеру",null,null,{"$f":"Балалар[[#This Row],[Жоспарланған]]-Балалар[[#This Row],[Базалық актив]]","v":0}]
[null,null,"Киім",null,null,{"$f":"Балалар[[#This Row],[Жоспарланған]]-Балалар[[#This Row],[Базалық актив]]","v":0}]
[null,null,"Оқуға төленетін ақша",null,null,{"$f":"Балалар[[#This Row],[Жоспарланған]]-Балалар[[#This Row],[Базалық актив]]","v":0}]
[null,null,"Мектеп құралдары",null,null,{"$f":"Балалар[[#This Row],[Жоспарланған]]-Балалар[[#This Row],[Базалық актив]]","v":0}]
[null,null,"Ұйым салықтары мен төлемдері",null,null,{"$f":"Балалар[[#This Row],[Жоспарланған]]-Балалар[[#This Row],[Базалық актив]]","v":0}]
[null,null,"Түскі ас ақшасы",null,null,{"$f":"Балалар[[#This Row],[Жоспарланған]]-Балалар[[#This Row],[Базалық актив]]","v":0}]
[null,null,"Балаларды қарау",null,null,{"$f":"Балалар[[#This Row],[Жоспарланған]]-Балалар[[#This Row],[Базалық актив]]","v":0}]
[null,null,"Ойыншықтар/ойындар",null,null,{"$f":"Балалар[[#This Row],[Жоспарланған]]-Балалар[[#This Row],[Базалық актив]]","v":0}]
[null,null,"Басқа",null,null,{"$f":"Балалар[[#This Row],[Жоспарланған]]-Балалар[[#This Row],[Базалық актив]]","v":0}]
[null,null,"Қорытынды",{"$f":"SUBTOTAL(109,Балалар[Жоспарланған])","v":0},{"$f":"SUBTOTAL(109,Балалар[Базалық актив])","v":0},{"$f":"SUBTOTAL(109,Балалар[Айырмашылық])","v":0}]
[]
[null,null,"Үй жануарлары","Жоспарланған","Базалық актив","Айырмашылық"]
[null,null,"Тамақ",null,null,{"$f":"Үй_жануарлары[[#This Row],[Жоспарланған]]-Үй_жануарлары[[#This Row],[Базалық актив]]","v":0}]
[null,null,"Медициналық тексеру",null,null,{"$f":"Үй_жануарлары[[#This Row],[Жоспарланған]]-Үй_жануарлары[[#This Row],[Базалық актив]]","v":0}]
[null,null,"Күтім көрсету",null,null,{"$f":"Үй_жануарлары[[#This Row],[Жоспарланған]]-Үй_жануарлары[[#This Row],[Базалық актив]]","v":0}]
[null,null,"Ойыншықтар",null,null,{"$f":"Үй_жануарлары[[#This Row],[Жоспарланған]]-Үй_жануарлары[[#This Row],[Базалық актив]]","v":0}]
[null,null,"Басқа",null,null,{"$f":"Үй_жануарлары[[#This Row],[Жоспарланған]]-Үй_жануарлары[[#This Row],[Базалық актив]]","v":0}]
[null,null,"Қорытынды",{"$f":"SUBTOTAL(109,Үй_жануарлары[Жоспарланған])","v":0},{"$f":"SUBTOTAL(109,Үй_жануарлары[Базалық актив])","v":0},{"$f":"SUBTOTAL(109,Үй_жануарлары[Айырмашылық])","v":0}]
[]
[null,null,"Жеке күтім","Жоспарланған","Базалық актив","Айырмашылық"]
[null,null,"Медициналық тексеру",null,null,{"$f":"PersonalCare[[#This Row],[Жоспарланған]]-PersonalCare[[#This Row],[Базалық актив]]","v":0}]
[null,null,"Шаш/тырнақ",null,null,{"$f":"PersonalCare[[#This Row],[Жоспарланған]]-PersonalCare[[#This Row],[Базалық актив]]","v":0}]
[null,null,"Киім",null,null,{"$f":"PersonalCare[[#This Row],[Жоспарланған]]-PersonalCare[[#This Row],[Базалық актив]]","v":0}]
[null,null,"Құрғақ тазалау",null,null,{"$f":"PersonalCare[[#This Row],[Жоспарланған]]-PersonalCare[[#This Row],[Базалық актив]]","v":0}]
[null,null,"Денсаулық клубы",null,null,{"$f":"PersonalCare[[#This Row],[Жоспарланған]]-PersonalCare[[#This Row],[Базалық актив]]","v":0}]
[null,null,"Ұйым салықтары мен төлемдері",null,null,{"$f":"PersonalCare[[#This Row],[Жоспарланған]]-PersonalCare[[#This Row],[Базалық актив]]","v":0}]
[null,null,"Басқа",null,null,{"$f":"PersonalCare[[#This Row],[Жоспарланған]]-PersonalCare[[#This Row],[Базалық актив]]","v":0}]
[null,null,"Қорытынды",{"$f":"SUBTOTAL(109,PersonalCare[Жоспарланған])","v":0},{"$f":"SUBTOTAL(109,PersonalCare[Базалық актив])","v":0},{"$f":"SUBTOTAL(109,PersonalCare[Айырмашылық])","v":0}]
[]
[null,null,"Ойын-сауық","Жоспарланған","Базалық актив","Айырмашылық"]
[null,null,"Бейне/DVD",null,null,{"$f":"Ойын_сауық[[#This Row],[Жоспарланған]]-Ойын_сауық[[#This Row],[Базалық актив]]","v":0}]
[null,null,"Ықшам дискілер",null,null,{"$f":"Ойын_сауық[[#This Row],[Жоспарланған]]-Ойын_сауық[[#This Row],[Базалық актив]]","v":0}]
[null,null,"Фильмдер",null,null,{"$f":"Ойын_сауық[[#This Row],[Жоспарланған]]-Ойын_сауық[[#This Row],[Базалық актив]]","v":0}]
[null,null,"Концерттер",null,null,{"$f":"Ойын_сауық[[#This Row],[Жоспарланған]]-Ойын_сауық[[#This Row],[Базалық актив]]","v":0}]
[null,null,"Спорттық іс-шаралар",null,null,{"$f":"Ойын_сауық[[#This Row],[Жоспарланған]]-Ойын_сауық[[#This Row],[Базалық актив]]","v":0}]
[null,null,"Жанды театр",null,null,{"$f":"Ойын_сауық[[#This Row],[Жоспарланған]]-Ойын_сауық[[#This Row],[Базалық актив]]","v":0}]
[null,null,"Басқа",null,null,{"$f":"Ойын_сауық[[#This Row],[Жоспарланған]]-Ойын_сауық[[#This Row],[Базалық актив]]","v":0}]
[null,null,"Қорытынды",{"$f":"SUBTOTAL(109,Ойын_сауық[Жоспарланған])","v":0},{"$f":"SUBTOTAL(109,Ойын_сауық[Базалық актив])","v":0},{"$f":"SUBTOTAL(109,Ойын_сауық[Айырмашылық])","v":0}]
[]
[null,null,"Несиелер","Жоспарланған","Базалық актив","Айырмашылық"]
[null,null,"Жеке",null,null,{"$f":"Құжат_қағазы[[#This Row],[Жоспарланған]]-Құжат_қағазы[[#This Row],[Базалық актив]]","v":0}]
[null,null,"Студент",null,null,{"$f":"Құжат_қағазы[[#This Row],[Жоспарланған]]-Құжат_қағазы[[#This Row],[Базалық актив]]","v":0}]
[null,null,"Кредиттік карта",null,null,{"$f":"Құжат_қағазы[[#This Row],[Жоспарланған]]-Құжат_қағазы[[#This Row],[Базалық актив]]","v":0}]
[null,null,"Кредиттік карта",null,null,{"$f":"Құжат_қағазы[[#This Row],[Жоспарланған]]-Құжат_қағазы[[#This Row],[Базалық актив]]","v":0}]
[null,null,"Кредиттік карта",null,null,{"$f":"Құжат_қағазы[[#This Row],[Жоспарланған]]-Құжат_қағазы[[#This Row],[Базалық актив]]","v":0}]
[null,null,"Басқа",null,null,{"$f":"Құжат_қағазы[[#This Row],[Жоспарланған]]-Құжат_қағазы[[#This Row],[Базалық актив]]","v":0}]
[null,null,"Қорытынды",{"$f":"SUBTOTAL(109,Құжат_қағазы[Жоспарланған])","v":0},{"$f":"SUBTOTAL(109,Құжат_қағазы[Базалық актив])","v":0},{"$f":"SUBTOTAL(109,Құжат_қағазы[Айырмашылық])","v":0}]
[]
[null,null,"Салықтар","Жоспарланған","Базалық актив","Айырмашылық"]
[null,null,"Федеральді садық",null,null,{"$f":"Салықтар[[#This Row],[Жоспарланған]]-Салықтар[[#This Row],[Базалық актив]]","v":0}]
[null,null,"Облыс",null,null,{"$f":"Салықтар[[#This Row],[Жоспарланған]]-Салықтар[[#This Row],[Базалық актив]]","v":0}]
[null,null,"Жергілікті",null,null,{"$f":"Салықтар[[#This Row],[Жоспарланған]]-Салықтар[[#This Row],[Базалық актив]]","v":0}]
[null,null,"Басқа",null,null,{"$f":"Салықтар[[#This Row],[Жоспарланған]]-Салықтар[[#This Row],[Базалық актив]]","v":0}]
[null,null,"Қорытынды",{"$f":"SUBTOTAL(109,Салықтар[Жоспарланған])","v":0},{"$f":"SUBTOTAL(109,Салықтар[Базалық актив])","v":0},{"$f":"SUBTOTAL(109,Салықтар[Айырмашылық])","v":0}]
[]
[null,null,"Жинақтар мен инвестициялар","Жоспарланған","Базалық актив","Айырмашылық"]
[null,null,"Зейнетақы қоры",null,null,{"$f":"Жинақ_ақша[[#This Row],[Жоспарланған]]-Жинақ_ақша[[#This Row],[Базалық актив]]","v":0}]
[null,null,"Инвестициялық шот",null,null,{"$f":"Жинақ_ақша[[#This Row],[Жоспарланған]]-Жинақ_ақша[[#This Row],[Базалық актив]]","v":0}]
[null,null,"Колледж",null,null,{"$f":"Жинақ_ақша[[#This Row],[Жоспарланған]]-Жинақ_ақша[[#This Row],[Базалық актив]]","v":0}]
[null,null,"Басқа",null,null,{"$f":"Жинақ_ақша[[#This Row],[Жоспарланған]]-Жинақ_ақша[[#This Row],[Базалық актив]]","v":0}]
[null,null,"Қорытынды",{"$f":"SUBTOTAL(109,Жинақ_ақша[Жоспарланған])","v":0},{"$f":"SUBTOTAL(109,Жинақ_ақша[Базалық актив])","v":0},{"$f":"SUBTOTAL(109,Жинақ_ақша[Айырмашылық])","v":0}]
[]
[null,null,"Сыйлықтар","Жоспарланған","Базалық актив","Айырмашылық"]
[null,null,"1-ші қайырымдылық қоры",null,null,{"$f":"Сыйлықтар[[#This Row],[Жоспарланған]]-Сыйлықтар[[#This Row],[Базалық актив]]","v":0}]
[null,null,"2-ші қайырымдылық қоры",null,null,{"$f":"Сыйлықтар[[#This Row],[Жоспарланған]]-Сыйлықтар[[#This Row],[Базалық актив]]","v":0}]
[null,null,"3-ші қайырымдылық қоры",null,null,{"$f":"Сыйлықтар[[#This Row],[Жоспарланған]]-Сыйлықтар[[#This Row],[Базалық актив]]","v":0}]
[null,null,"Қорытынды",{"$f":"SUBTOTAL(109,Сыйлықтар[Жоспарланған])","v":0},{"$f":"SUBTOTAL(109,Сыйлықтар[Базалық актив])","v":0},{"$f":"SUBTOTAL(109,Сыйлықтар[Айырмашылық])","v":0}]
[]
[null,null,"Заңды","Жоспарланған","Базалық актив","Айырмашылық"]
[null,null,"Заңгер",null,null,{"$f":"Заңдық[[#This Row],[Жоспарланған]]-Заңдық[[#This Row],[Базалық актив]]","v":0}]
[null,null,"Алимент",null,null,{"$f":"Заңдық[[#This Row],[Жоспарланған]]-Заңдық[[#This Row],[Базалық актив]]","v":0}]
[null,null,"Сот шешімі не мүлкін тәркілеу төлемдері",null,null,{"$f":"Заңдық[[#This Row],[Жоспарланған]]-Заңдық[[#This Row],[Базалық актив]]","v":0}]
[null,null,"Басқа",null,null,{"$f":"Заңдық[[#This Row],[Жоспарланған]]-Заңдық[[#This Row],[Базалық актив]]","v":0}]
[null,null,"Қорытынды",{"$f":"SUBTOTAL(109,Заңдық[Жоспарланған])","v":0},{"$f":"SUBTOTAL(109,Заңдық[Базалық актив])","v":0},{"$f":"SUBTOTAL(109,Заңдық[Айырмашылық])","v":0}]